bitfinex/quotes_ETHUSD_20230701
["timestamp","ask_amount","ask_price","bid_price","bid_amount"]
[1688220628913,7.87973184,1926.0,1925.8,5.19245]
[1688220629212,13.07194184,1926.0,1925.8,5.1926]
[1688220629411,7.87973184,1926.0,1925.8,5.1926]
[1688220629744,2.68752184,1926.0,1925.8,12.98156]
[1688220630933,5.19167,1926.2,1925.8,14.279716]
[1688220631242,2.68752184,1926.1,1925.8,14.279716]
[1688220631469,13.07118184,1926.1,1925.7,0.01649494]
[1688220631742,17.35439184,1926.1,1925.7,5.20930494]
[1688220631935,17.35439184,1926.1,1925.7,10.40221494]
[1688220634149,17.35439184,1926.1,1925.7,10.39963383]
[1688220634355,19.48443102,1926.1,1925.7,10.39963383]
[1688220635855,19.48443102,1926.1,1925.7,5.20672383]
[1688220636370,0.48,1926.0,1925.7,0.01391383]
[1688220636657,2.68752184,1925.9,1925.7,5.20678383]
[1688220636849,2.68752184,1925.9,1925.7,10.39969383]
[1688220637048,7.87993184,1925.9,1925.7,10.39969383]
[1688220637225,13.07234184,1925.9,1925.7,5.20678383]
[1688220637425,13.07234184,1925.9,1925.7,0.01391383]
[1688220640957,13.07234184,1925.9,1925.6,10.38614]
[1688220644348,7.87993184,1925.9,1925.6,10.38614]
[1688220646854,7.87993184,1925.9,1925.6,12.98273]
[1688220648161,2.68752184,1925.9,1925.6,12.98273]
[1688220651264,14.31855855,1926.1,1925.6,14.540672]
[1688220651438,2.68752184,1926.0,1925.6,14.540672]
[1688220653267,2.68752184,1926.0,1925.6,12.98273]
[1688220655073,0.41772855,1926.1,1925.6,13.92873]
[1688220655363,2.68752184,1926.1,1925.6,13.92873]
[1688220655579,8.19428113,1926.2,1925.6,13.92873]
[1688220655735,16.07348297,1926.2,1925.6,17.60413]
[1688220655933,11.29213238,1926.2,1925.8,10.3851]
[1688220657567,16.48381238,1926.2,1925.8,5.19251]
[1688220657775,2.68752184,1926.1,1925.8,5.19251]
[1688220657938,10.3842,1926.0,1925.8,5.19251]
[1688220658341,13.07172184,1926.0,1925.7,5.19275]
[1688220658692,14.63848802,1926.0,1925.7,5.19275]
[1688220659968,14.63848802,1926.0,1925.7,10.38566]
[1688220663503,7.87962184,1926.0,1925.7,10.38566]
[1688220665473,2.68752184,1926.0,1925.7,10.38566]
[1688220665845,13.79640054,1926.2,1925.7,12.98211]
[1688220666193,2.68752184,1926.1,1925.7,12.98211]
[1688220667047,13.07130184,1926.1,1925.7,12.98211]
[1688220667282,15.15277508,1926.1,1925.7,12.98211]
[1688220667551,15.15277508,1926.1,1925.7,10.38566]
[1688220668487,15.15277508,1926.1,1925.7,5.19275]
[1688220668864,15.15277508,1926.1,1925.7,10.38566]
[1688220668865,17.74868508,1926.1,1925.7,10.38566]
[1688220670910,17.74868508,1926.1,1925.7,5.19275]
[1688220671086,12.15931851,1926.0,1925.7,5.19275]
[1688220671269,14.84684035,1926.0,1925.7,5.19275]
[1688220675024,14.84684035,1926.0,1925.6,12.50611]
[1688220675180,13.07197184,1926.0,1925.6,12.50611]
[1688220676913,13.07197184,1926.0,1925.6,15.1027]
[1688220679929,7.87964184,1926.0,1925.6,15.1027]
[1688220681834,2.68752184,1926.0,1925.6,15.1027]
[1688220683071,3.11146229,1926.0,1925.6,15.1027]
[1688220683287,3.11146229,1926.0,1925.6,16.70897444]
[1688220684025,3.11146229,1926.0,1925.6,15.1027]
[1688220684326,8.30363229,1926.0,1925.6,15.1027]
[1688220685370,13.49580229,1926.0,1925.6,15.1027]
[1688220690876,8.30363229,1926.0,1925.6,15.1027]
[1688220692587,10.00883229,1926.0,1925.6,15.1027]
[1688220694195,16.72101552,1926.0,1925.6,15.1027]
[1688220695793,11.52884552,1926.0,1925.6,15.1027]
[1688220695997,16.72094552,1926.0,1925.6,15.1027]
[1688220696185,10.00876229,1926.0,1925.6,15.1027]
[1688220696373,4.81666229,1926.0,1925.6,15.1027]
[1688220697403,4.81666229,1926.0,1925.6,16.0407]
[1688220697603,3.11146229,1926.0,1925.6,16.0407]
[1688220700886,2.68752184,1926.0,1925.6,16.0407]
[1688220701091,2.68752184,1926.0,1925.6,17.64617444]
[1688220701401,4.63198113,1926.2,1925.8,0.943]
[1688220701616,4.31692184,1926.2,1925.9,10.38464]
[1688220701953,4.31692184,1926.2,1925.9,12.98082]
[1688220712439,4.31692184,1926.2,1925.8,0.943]
[1688220712641,4.31692184,1926.2,1925.9,12.98082]
[1688220718841,0.41020122,1926.3,1925.9,14.373202]
[1688220719037,0.41020122,1926.3,1926.0,0.94]
[1688220719254,1.6888,1926.5,1926.1,12.97957]
[1688220719448,4.37632184,1926.5,1926.1,12.97957]
[1688220721386,9.56715184,1926.5,1926.1,12.97957]
[1688220724259,9.56715184,1926.5,1926.1,14.35272267]
[1688220726809,4.37632184,1926.5,1926.1,14.35272267]
[1688220728890,4.78814747,1926.5,1926.1,14.35272267]
[1688220729283,2.68752184,1926.4,1926.1,10.38366]
[1688220729493,7.87859184,1926.4,1926.0,5.19202]
[1688220729697,13.06966184,1926.4,1926.1,5.19183]
[1688220730405,13.06966184,1926.4,1926.0,5.19198]
[1688220730619,13.06966184,1926.4,1925.9,5.19237]
[1688220730620,15.66517184,1926.4,1925.9,5.19237]
[1688220730828,3.19961718,1926.3,1925.6,30.971]
[1688220730983,5.19184,1926.1,1925.8,5.19262]
[1688220731186,7.87936184,1926.1,1925.8,5.19262]
[1688220731484,7.87936184,1926.1,1925.6,34.66868]
[1688220731485,2.68752184,1926.0,1925.6,34.66869]
[1688220731701,2.68752184,1926.0,1925.8,10.38528]
[1688220731874,2.68752184,1926.0,1925.8,12.9816]
[1688220736126,2.68488665,1926.0,1925.8,12.9816]
[1688220739439,5.19143,1926.3,1925.8,14.27976]
[1688220739750,2.68752184,1926.2,1925.8,14.27976]
[1688220740637,1.6024,1926.3,1925.8,14.27976]
[1688220740851,7.28992184,1926.3,1925.8,14.27976]
[1688220740999,12.48123184,1926.3,1925.8,14.27976]
[1688220741205,17.67254184,1926.3,1925.9,1.427976]
[1688220741408,18.08610008,1926.3,1926.0,10.3841]
[1688220743422,7.70348008,1926.3,1926.0,10.3841]
[1688220743624,3.41355824,1926.3,1926.0,12.98015]
[1688220743865,0.41355824,1926.3,1926.0,12.98015]
[1688220744059,0.41355824,1926.3,1926.0,14.6236926]
[1688220744362,15.38324113,1926.4,1926.0,14.6236926]
[1688220744566,18.07076297,1926.4,1926.0,14.6236926]
[1688220744739,7.68850297,1926.4,1926.0,14.6236926]
[1688220745859,6.10727438,1926.4,1926.0,14.6236926]
[1688220746065,6.10727438,1926.4,1926.2,5.19156]
[1688220748069,6.10727438,1926.4,1926.1,10.38346]
[1688220748269,11.29832438,1926.4,1926.1,5.1917]
[1688220748833,11.29835438,1926.4,1926.1,5.1917]
[1688220753680,11.29835438,1926.4,1926.1,10.38353]
[1688220753900,6.10727438,1926.4,1926.1,10.38353]
[1688220754105,6.10727438,1926.4,1926.1,11.835005]
[1688220754272,6.10727438,1926.4,1926.1,14.430915]
[1688220754273,2.69010297,1926.4,1926.1,14.430915]
[1688220756289,7.88115297,1926.4,1926.1,11.835005]
[1688220756491,7.88115297,1926.4,1926.1,10.38353]
[1688220761326,2.69010297,1926.4,1926.1,10.38353]
[1688220762531,7.88115297,1926.4,1926.1,10.38353]
[1688220767611,2.69010297,1926.4,1926.1,10.38353]
[1688220772471,0.00258113,1926.4,1926.1,10.38353]
[1688220772678,0.40839767,1926.5,1926.2,1.038353]
[1688220772972,3.1275906,1926.6,1926.2,1.038353]
[1688220772973,0.1275906,1926.6,1926.3,10.38258]
[1688220773272,2.81511244,1926.6,1926.3,10.38258]
[1688220777948,2.81511244,1926.6,1926.3,12.97822]
[1688220778141,2.81511244,1926.6,1926.3,14.7470473]
[1688220778377,0.1275906,1926.6,1926.3,14.7470473]
[1688220778609,7.93281805,1926.8,1926.4,0.01403779]
[1688220778610,0.41468205,1926.8,1926.4,0.01403779]
[1688220778744,0.41468205,1926.8,1926.5,12.97675]
[1688220778947,3.0,1927.0,1926.6,1.297675]
[1688220779269,2.68752184,1926.9,1926.6,5.19023]
[1688220779446,13.06704184,1926.9,1926.6,10.38072]
[1688220780183,7.87720184,1926.9,1926.6,10.38072]
[1688220780583,2.68752184,1926.9,1926.6,10.38072]
[1688220780752,2.68752184,1926.9,1926.6,12.97596]
[1688220780952,2.68752184,1926.9,1926.6,14.53449471]
[1688220787384,2.68752184,1926.9,1926.6,12.97596]
[1688220788567,7.87722184,1926.9,1926.6,12.97596]
[1688220788768,2.68752184,1926.9,1926.6,12.97596]
[1688220796600,7.87721184,1926.9,1926.6,12.97596]
[1688220810619,7.87721184,1926.9,1926.6,10.38072]
[1688220810820,0.78772118,1926.8,1926.4,5.19089]
[1688220811020,7.87779184,1926.7,1926.3,10.3823]
[1688220811224,7.87779184,1926.7,1925.7,32.62637]
[1688220811225,0.48,1926.6,1925.7,32.62637]
[1688220811531,12.97792,1926.4,1925.7,6.99735421]
[1688220811820,5.19184,1926.1,1925.7,16.6628]
[1688220812717,6.90744,1926.1,1925.7,16.6628]
[1688220819709,1.7156,1926.1,1925.7,16.6628]
[1688220821446,2.68752184,1926.0,1925.7,7.21608]
[1688220821740,2.68752184,1926.0,1925.7,15.98810636]
[1688220833964,0.42051572,1926.3,1925.7,16.25584607]
[1688220834143,2.68752184,1926.2,1925.7,16.25584607]
[1688220838356,1.039357,1926.4,1925.9,0.941]
[1688220838558,2.68752184,1926.4,1926.0,15.5759]
[1688220838735,2.68752184,1926.4,1926.0,17.746827]
[1688220839831,2.00003491,1926.5,1926.0,17.746827]
[1688220840037,3.09755675,1926.5,1926.0,17.746827]
[1688220840540,4.68755675,1926.5,1926.0,21.281327]
[1688220841678,9.87831675,1926.5,1926.0,21.281327]
[1688220841886,9.87831675,1926.5,1926.1,2.1281327]
[1688220842170,9.87831675,1926.5,1926.2,10.38302]
[1688220842873,9.87831675,1926.5,1926.2,12.9788]
[1688220843077,2.68752184,1926.4,1926.2,5.19151]
[1688220843379,0.00258113,1926.3,1926.2,5.19154]
[1688220844865,2.69010297,1926.3,1926.2,5.19156]
[1688220845244,2.69010297,1926.3,1926.2,10.38312]
[1688220851883,2.69010297,1926.3,1926.2,12.9789]
[1688220857206,2.00003491,1926.5,1926.2,12.9789]
[1688220857504,4.68755675,1926.5,1926.2,12.9789]
[1688220857893,3.09755675,1926.5,1926.2,12.9789]
[1688220864105,8.28833675,1926.5,1926.2,12.9789]
[1688220864894,3.09755675,1926.5,1926.2,12.9789]
[1688220868911,3.09755675,1926.5,1926.2,14.536377]
[1688220871285,3.09755675,1926.5,1926.2,12.9789]
[1688220873916,2.68752184,1926.5,1926.2,12.9789]
[1688220879026,7.87829184,1926.5,1926.2,12.9789]
[1688220879715,2.68752184,1926.5,1926.2,12.9789]
[1688220905303,2.68752184,1926.4,1926.2,12.9789]
[1688220915629,2.68752184,1926.4,1926.2,14.47479]
[1688220916222,0.42152439,1926.6,1926.2,14.47479]
[1688220916397,4.6063,1926.8,1926.2,14.47479]
[1688220916589,4.6063,1926.8,1926.2,16.04179]
[1688220916590,2.68752184,1926.7,1926.2,16.04179]
[1688220916812,2.68752184,1926.7,1926.4,12.97742]
[1688220920534,0.41269084,1926.8,1926.4,13.92042]
[1688220920826,2.68752184,1926.8,1926.5,0.01403706]
[1688220920994,2.68752184,1926.8,1926.6,12.97622]
[1688220923622,6.55903483,1927.0,1926.7,0.01403561]
[1688220923623,4.59403483,1927.0,1926.7,0.01403561]
[1688220923957,3.24254567,1927.0,1926.8,10.3799]
[1688220925058,3.24254567,1927.0,1926.8,12.97487]
[1688220934282,3.24050755,1927.0,1926.8,12.97487]
[1688220936259,3.24050755,1927.0,1926.8,10.3799]
[1688220940475,3.1098435,1927.0,1926.8,10.3799]
[1688220942489,2.68752184,1926.9,1926.7,0.01403561]
[1688220942694,2.68752184,1926.9,1926.7,5.19019]
[1688220942695,7.87727184,1926.9,1926.7,5.19019]
[1688220945127,7.87727184,1926.9,1926.5,7.19191]
[1688220945326,7.87727184,1926.9,1926.4,10.382]
[1688220945327,5.67006,1926.8,1926.4,10.382]
[1688220945503,8.44477784,1926.7,1926.4,10.382]
[1688220945911,3.25452784,1926.7,1926.4,12.97751]
[1688220947328,2.68752184,1926.7,1926.4,12.97751]
[1688220947498,3.0,1926.6,1926.1,3.6066]
[1688220947699,3.0,1926.6,1925.6,2.59654]
[1688220947700,3.17010297,1926.5,1925.6,2.59654]
[1688220948002,3.17010297,1926.5,1925.8,5.19251]
[1688220948003,12.97866,1926.3,1925.8,5.19251]
[1688220948237,10.38377,1926.1,1925.8,5.19251]
[1688220948443,13.07129184,1926.1,1925.8,5.19251]
[1688220949600,13.07129184,1926.1,1925.8,10.38515]
[1688220950430,7.87940184,1926.1,1925.8,12.98147]
[1688220952135,13.07129184,1926.1,1925.8,10.38515]
[1688220954528,2.68752184,1926.0,1925.6,1.5748]
[1688220954729,8.19248,1925.9,1925.4,5.19355]
[1688220954939,0.946,1925.8,1925.4,10.38743]
[1688220955117,16.07237184,1925.9,1925.4,10.38743]
[1688220955311,10.3859,1925.7,1925.4,5.19371]
[1688220955634,13.07342184,1925.7,1925.4,5.19371]
[1688220956749,13.07342184,1925.7,1925.4,10.38743]
[1688220957314,7.88045184,1925.7,1925.4,10.38743]
[1688220958242,5.59622,1925.9,1925.4,12.99833508]
[1688220958243,3.0,1925.9,1925.4,12.99833508]
[1688220958448,2.68752184,1925.9,1925.6,12.98282]
[1688220961250,3.0968807,1925.9,1925.6,12.98282]
[1688220963752,3.0,1926.1,1925.6,13.92582]
[1688220963964,1.039409,1926.2,1925.6,12.98282]
[1688220964119,3.72693084,1926.2,1925.6,12.98282]
[1688220964314,3.72693084,1926.2,1925.7,1.298282]
[1688220964622,1.9313,1926.5,1925.8,12.98127]
[1688220964822,2.68752184,1926.4,1925.8,13.92227]
[1688220965319,8.91784684,1926.4,1925.8,13.92227]
[1688220965527,8.91784684,1926.4,1926.0,10.38404]
[1688220965951,3.0,1926.3,1926.0,10.38404]
[1688220966843,5.68752184,1926.3,1926.0,5.19197]
[1688220967023,2.68752184,1926.2,1925.7,5.19279]
[1688220967226,5.19197,1926.1,1925.7,10.38561]
[1688220967841,5.19197,1926.1,1925.7,12.98206]
[1688220968465,13.07103184,1926.2,1925.7,12.98206]
[1688220970937,13.07103184,1926.2,1925.7,5.19279]
[1688220971176,3.0,1926.1,1925.7,5.19291]
[1688220971372,3.0,1926.1,1925.7,10.38582]
[1688220971373,2.68752184,1926.0,1925.7,10.38582]
[1688220971674,13.07198184,1926.0,1925.6,5.19302]
[1688220971878,3.0,1925.9,1925.5,5.20738435]
[1688220972047,2.68752184,1925.8,1925.5,5.20734435]
[1688220972241,7.88024184,1925.8,1925.5,5.20734435]
[1688220973378,7.88024184,1925.8,1925.5,10.40079435]
[1688220973765,2.68752184,1925.8,1925.5,10.40079435]
[1688220974671,2.68752184,1925.8,1925.5,5.20734435]
[1688220974672,7.88021184,1925.8,1925.5,5.20734435]
[1688220974909,7.88021184,1925.8,1925.5,10.40079435]
[1688220976790,13.07290184,1925.8,1925.5,0.01404435]
[1688220976999,17.53613002,1925.8,1925.3,7.32712]
[1688220977192,17.53613002,1925.8,1925.4,5.19368]
[1688220977701,17.53613002,1925.8,1925.4,10.3874]
[1688220979112,18.47613002,1925.8,1925.3,2.1333]
[1688220979411,4.85019413,1925.7,1925.2,5.19406]
[1688220979701,15.67081184,1925.6,1925.2,5.19406]
[1688220980016,16.15081184,1925.6,1925.2,10.38832]
[1688220980732,13.55416184,1925.6,1925.2,12.98545]
[1688220981018,8.36084184,1925.6,1925.2,12.98545]
[1688220981689,13.55416184,1925.6,1925.2,12.98545]
[1688220983019,2.68752184,1925.6,1925.2,14.48255973]
[1688220983518,7.88071184,1925.6,1925.2,14.48255973]
[1688220985934,13.07390184,1925.6,1925.2,14.48255973]
[1688220987689,7.88071184,1925.6,1925.2,14.48255973]
[1688220990150,13.07390184,1925.6,1925.2,14.48255973]
[1688220992670,15.67049184,1925.6,1925.2,5.19406]
[1688220993476,15.67049184,1925.6,1925.2,10.38832]
[1688220994066,13.07390184,1925.6,1925.2,10.38832]
[1688220994668,7.88071184,1925.6,1925.2,10.38832]
[1688220994975,2.68752184,1925.6,1925.2,12.98545]
[1688220995178,2.68752184,1925.6,1925.3,1.298545]
[1688220995374,2.68752184,1925.6,1925.4,10.38744]
[1688220999050,7.88072184,1925.6,1925.4,10.38744]
[1688220999959,2.68752184,1925.6,1925.4,10.38744]
[1688221001557,3.0,1925.7,1925.4,10.38744]
[1688221001766,5.68752184,1925.7,1925.4,14.42663858]
[1688221003180,10.88051184,1925.7,1925.4,14.42663858]
[1688221003684,2.68752184,1925.6,1925.4,0.01404508]
[1688221003849,2.68752184,1925.6,1925.3,5.19373]
[1688221003850,13.07411184,1925.6,1925.3,5.19373]
[1688221004046,13.07411184,1925.6,1925.3,10.38754]
[1688221008057,7.88071184,1925.6,1925.3,10.38754]
[1688221010869,7.88071184,1925.6,1925.3,12.98453]
[1688221012982,13.07390184,1925.6,1925.3,12.98453]
[1688221019700,13.07390184,1925.6,1925.3,10.38754]
[1688221020471,17.70202802,1925.6,1925.3,5.19373]
[1688221023834,15.10543802,1925.6,1925.3,10.38772]
[1688221033415,13.07390184,1925.6,1925.3,10.38772]
[1688221035684,2.68752184,1925.6,1925.3,10.38772]
[1688221036413,2.68752184,1925.6,1925.3,12.98471]
[1688221039794,7.88073184,1925.6,1925.3,12.98471]
[1688221040916,7.88073184,1925.6,1925.3,10.38772]
[1688221046327,2.68752184,1925.6,1925.3,10.38772]
[1688221049964,2.68752184,1925.6,1925.3,12.98471]
[1688221050310,2.68752184,1925.6,1925.3,14.440141]
[1688221055110,5.193,1925.7,1925.3,14.440141]
[1688221055309,7.88052184,1925.7,1925.3,14.440141]
[1688221058345,7.88052184,1925.7,1925.3,12.98471]
[1688221058737,7.88052184,1925.7,1925.3,12.99875581]
[1688221060040,7.88052184,1925.7,1925.3,10.40176581]
[1688221062344,2.05555028,1925.8,1925.3,10.40176581]
[1688221062646,5.68752184,1925.8,1925.4,0.941]
[1688221062825,5.68752184,1925.8,1925.5,10.3868]
[1688221064614,5.18752184,1925.8,1925.5,10.3868]
[1688221065861,5.18752184,1925.8,1925.5,12.98352]
[1688221066328,5.18752184,1925.8,1925.5,5.1934]
[1688221066570,0.51875218,1925.7,1925.4,5.19364]
[1688221066725,7.88051184,1925.7,1925.4,10.38728]
[1688221068027,2.68752184,1925.6,1925.4,10.38728]
[1688221069267,2.68752184,1925.6,1925.2,5.19424]
[1688221069268,0.48,1925.5,1925.2,5.19424]
[1688221069564,7.88124184,1925.4,1925.1,5.19442]
[1688221071470,7.88124184,1925.4,1925.1,10.38895]
[1688221071775,2.68752184,1925.4,1925.1,10.38895]
[1688221072315,2.68752184,1925.4,1925.1,5.19442]
[1688221072554,7.88129184,1925.4,1925.1,5.19442]
[1688221072758,2.68752184,1925.4,1925.1,5.19442]
[1688221073547,7.88124184,1925.4,1925.1,10.38895]
[1688221073762,2.68752184,1925.4,1925.1,10.38895]
[1688221075323,2.68752184,1925.4,1925.1,5.19442]
[1688221075324,7.88135184,1925.4,1925.1,5.19442]
[1688221075558,9.50170942,1925.4,1925.1,5.19442]
[1688221075762,15.64153942,1925.4,1925.0,5.19458]
[1688221076030,15.64153942,1925.4,1924.9,0.01404873]
[1688221076031,4.426,1925.3,1924.9,0.01404873]
[1688221076225,13.51874184,1925.2,1924.9,0.01404873]
[1688221076568,16.11587184,1925.2,1924.7,7.26552]
[1688221076774,16.11587184,1925.2,1924.7,15.05877]
[1688221077734,13.51874184,1925.2,1924.7,15.05877]
[1688221080363,13.51874184,1925.2,1924.7,15.07282019]
[1688221080563,13.51874184,1925.2,1924.7,17.04521758]
[1688221083045,13.07614184,1925.2,1924.7,17.04521758]
[1688221088565,13.07614184,1925.2,1924.7,15.07282019]
[1688221088779,1.426,1925.1,1924.6,0.41958372]
[1688221089086,15.67482184,1925.0,1924.4,8.99703]
[1688221089286,0.48,1924.9,1924.5,10.39226]
[1688221089465,13.07830184,1924.8,1924.5,10.39226]
[1688221089663,7.88291184,1924.8,1924.5,12.99033]
[1688221089861,7.88291184,1924.8,1924.5,5.19611]
[1688221090062,13.07830184,1924.8,1924.5,5.1961]
[1688221090261,1.30783018,1924.7,1924.3,2.59824]
[1688221090463,7.88316184,1924.7,1924.5,5.19607]
[1688221091790,7.88316184,1924.7,1924.5,10.39222]
[1688221092203,2.68752184,1924.7,1924.5,10.39222]
[1688221092354,2.68752184,1924.7,1924.5,12.99029]
[1688221093602,2.68752184,1924.7,1924.5,10.39222]
[1688221093964,7.88319184,1924.7,1924.5,10.39222]
[1688221094193,7.88319184,1924.7,1924.5,5.19607]
[1688221094570,7.88319184,1924.7,1924.5,10.39222]
[1688221094780,2.68752184,1924.7,1924.5,10.39222]
[1688221094957,2.68752184,1924.7,1924.5,12.99029]
[1688221095185,7.88315184,1924.7,1924.5,10.39222]
[1688221097885,0.48,1924.9,1924.5,11.70531165]
[1688221098119,2.68752184,1924.8,1924.5,14.30338165]
[1688221098282,2.68752184,1924.8,1924.5,15.24338165]
[1688221098497,2.68752184,1924.8,1924.5,14.30338165]
[1688221099241,7.88288184,1924.8,1924.5,13.00434165]
[1688221099385,7.88288184,1924.8,1924.5,10.39222]
[1688221100085,7.88288184,1924.8,1924.5,5.19607]
[1688221100327,13.07824184,1924.8,1924.5,10.39222]
[1688221101196,13.02824184,1924.8,1924.5,10.39222]
[1688221101594,7.83288184,1924.8,1924.5,10.39222]
[1688221101790,7.83288184,1924.8,1924.5,14.029512]
[1688221102829,2.63752184,1924.8,1924.5,14.029512]
[1688221104132,7.83291184,1924.8,1924.5,11.431442]
[1688221104299,7.83291184,1924.8,1924.5,10.39222]
[1688221104498,7.83291184,1924.8,1924.5,5.19607]
[1688221105531,13.02830184,1924.8,1924.5,10.39222]
[1688221107430,13.02830184,1924.8,1924.5,5.19607]
[1688221107643,13.02830184,1924.8,1924.5,10.39222]
[1688221108744,7.83291184,1924.8,1924.5,10.39222]
[1688221109250,13.02825184,1924.8,1924.5,5.19607]
[1688221111544,14.68070055,1924.8,1924.4,7.16587]
[1688221111714,17.27837055,1924.8,1924.4,12.36218]
[1688221111911,18.88227055,1924.8,1924.4,7.16587]
[1688221112351,18.88227055,1924.8,1924.4,12.36229]
[1688221115761,0.48,1924.7,1924.4,1.9697]
[1688221115962,13.07928184,1924.6,1924.2,5.19687]
[1688221116151,7.88340184,1924.6,1924.2,10.39382]
[1688221117356,14.82738184,1924.6,1924.2,10.39382]
[1688221117558,9.63150184,1924.6,1924.2,10.39382]
[1688221118173,14.82738184,1924.6,1924.2,10.39382]
[1688221118472,9.63150184,1924.6,1924.2,5.19686]
[1688221118680,14.82738184,1924.6,1924.2,5.19686]
[1688221119000,17.10672373,1924.6,1924.2,5.19686]
[1688221119493,19.70466373,1924.6,1924.1,8.65493]
[1688221119790,19.70466373,1924.6,1924.1,8.65486]
[1688221119941,19.70466373,1924.6,1924.1,3.4578]
[1688221120137,19.70466373,1924.6,1924.1,8.65497]
[1688221120337,5.19642,1924.4,1924.1,13.8522]
[1688221120544,7.88394184,1924.4,1924.1,13.8522]
[1688221120744,7.88394184,1924.4,1924.1,16.45081]
[1688221121157,7.88394184,1924.4,1924.1,14.98111]
[1688221121805,2.68752184,1924.4,1924.1,14.98111]
[1688221121951,2.68752184,1924.4,1924.1,16.74754297]
[1688221124244,1.040288,1924.6,1924.1,16.74754297]
[1688221124446,2.68752184,1924.6,1924.2,0.946]
[1688221124788,2.68752184,1924.6,1924.3,12.9916]
[1688221124949,3.0,1924.7,1924.4,1.29916]
[1688221125264,3.0,1924.7,1924.5,10.3923]
[1688221125265,5.68752184,1924.7,1924.5,10.3923]
[1688221125846,10.88316184,1924.7,1924.5,5.19615]
[1688221126042,10.88316184,1924.7,1924.4,10.39261]
[1688221126653,16.07880184,1924.7,1924.4,10.39261]
[1688221127577,16.07880184,1924.7,1924.4,5.1963]
[1688221130870,20.82235482,1924.7,1924.2,12.97683384]
[1688221131078,20.82235482,1924.7,1924.2,12.03083384]
[1688221131981,2.68752184,1924.6,1924.2,12.03083384]
[1688221132180,7.88360184,1924.6,1924.2,12.03083384]
[1688221132723,9.52890184,1924.6,1924.2,12.03083384]
[1688221135037,9.52890184,1924.6,1924.2,14.62931384]
[1688221135429,14.72498184,1924.6,1924.2,14.62931384]
[1688221135742,14.72498184,1924.6,1924.2,12.03083384]
[1688221135743,16.97183532,1924.6,1924.2,12.03083384]
[1688221136434,16.97183532,1924.6,1924.2,6.83403384]
[1688221137142,19.56977532,1924.6,1924.2,6.83403384]
[1688221137343,19.56977532,1924.6,1924.2,5.21083384]
[1688221138729,19.56977532,1924.6,1924.2,10.40779384]
[1688221139220,2.43697753,1924.5,1924.1,12.38223]
[1688221139529,13.08046184,1924.4,1924.1,12.38223]
[1688221140260,15.67867184,1924.4,1924.1,1.9881]
[1688221140769,5.19696,1924.2,1924.0,0.41816437]
[1688221140911,2.68752184,1924.1,1924.0,5.19747]
[1688221141510,2.68752184,1924.1,1923.9,12.49926615]
[1688221141711,2.68752184,1924.1,1923.9,12.92007152]
[1688221141945,7.88479184,1924.1,1923.9,2.52490152]
[1688221142137,2.68752184,1924.1,1923.9,10.94832152]
[1688221142466,13.08204184,1924.1,1923.9,0.55280152]
[1688221142754,7.88476184,1924.1,1923.9,10.52749615]
[1688221143547,2.68752184,1924.1,1923.9,10.52749615]
[1688221144853,2.68752184,1924.1,1923.9,13.12637615]
[1688221145435,0.00258113,1924.4,1924.0,0.9540553]
[1688221145764,0.00258113,1924.4,1924.1,12.99297]
[1688221145765,2.68752184,1924.4,1924.1,12.99297]
[1688221145973,7.88394184,1924.4,1924.1,12.99297]
[1688221147748,13.08036184,1924.4,1924.1,10.39436]
[1688221147918,13.08036184,1924.4,1924.1,5.19718]
[1688221149564,13.08036184,1924.4,1924.1,10.39441]
[1688221151791,7.88394184,1924.4,1924.1,10.39441]
[1688221151994,7.88394184,1924.4,1924.1,12.99302]
[1688221152766,7.88394184,1924.4,1924.1,5.19718]
[1688221153149,13.08036184,1924.4,1924.1,5.19718]
[1688221153585,7.88394184,1924.4,1924.1,5.19718]
[1688221155501,13.08036184,1924.4,1924.1,5.19718]
[1688221156254,7.88394184,1924.4,1924.1,5.19718]
[1688221158864,7.88394184,1924.4,1924.0,13.8860753]
[1688221159058,9.56184184,1924.4,1924.0,15.77664559]
[1688221163904,9.56184184,1924.4,1924.0,14.26544559]
[1688221164943,2.68752184,1924.3,1924.0,14.9736253]
[1688221165638,7.88432184,1924.3,1924.0,12.3748753]
[1688221165799,13.08112184,1924.3,1924.0,12.3748753]
[1688221166001,13.08112184,1924.3,1924.0,7.1774953]
[1688221166340,13.08112184,1924.3,1924.0,12.3749953]
[1688221169357,13.08112184,1924.3,1924.0,10.4088953]
[1688221170212,7.88432184,1924.3,1924.0,10.4088953]
[1688221172139,5.19626,1924.5,1924.0,14.40252183]
[1688221172364,2.68752184,1924.4,1924.0,17.41552183]
[1688221172760,2.68752184,1924.4,1924.0,16.47452183]
[1688221172975,7.88396184,1924.4,1924.0,15.0796453]
[1688221173573,9.56366184,1924.4,1924.0,15.0796453]
[1688221174678,5.19696,1924.2,1924.0,10.4088953]
[1688221174859,2.68752184,1924.1,1924.0,10.4088953]
[1688221176471,2.68752184,1924.1,1924.0,5.2113953]
[1688221176673,2.68752184,1924.1,1924.0,5.19734]
[1688221176860,2.68752184,1924.1,1924.0,10.39484]
[1688221182219,6.87626,1924.4,1924.0,10.39484]
[1688221182395,2.68752184,1924.3,1924.0,14.3070163]
[1688221182580,5.19594,1924.6,1924.0,17.9639163]
[1688221182785,5.68752184,1924.5,1924.0,17.9639163]
[1688221182990,5.68752184,1924.5,1924.2,10.39382]
[1688221183186,10.88368184,1924.5,1924.2,10.39382]
[1688221185116,5.68752184,1924.5,1924.2,10.39382]
[1688221185373,5.68752184,1924.5,1924.2,12.9923]
[1688221186995,3.0,1924.5,1924.2,12.9923]
[1688221187195,1.040158,1924.8,1924.3,1.29923]
[1688221187196,4.040158,1924.8,1924.3,1.29923]
[1688221187393,2.68752184,1924.7,1924.4,12.99074]
[1688221187593,3.0,1924.6,1924.4,12.99074]
[1688221187796,5.68752184,1924.6,1924.4,12.99074]
[1688221189153,5.68752184,1924.6,1924.4,10.39256]
[1688221197939,8.3038637,1924.8,1924.5,0.946]
[1688221197940,1.040158,1924.8,1924.5,0.946]
[1688221198128,12.14092,1925.2,1924.6,12.9897]
[1688221198426,2.68752184,1925.1,1924.6,18.173166]
[1688221198628,8.92215884,1925.1,1924.6,18.173166]
[1688221198799,8.92215884,1925.1,1924.6,19.111166]
[1688221200405,16.71403884,1925.1,1924.6,3.6247]
[1688221200618,3.48,1925.0,1924.5,5.19597]